fUST/lending_fUST_20240805
["ID","MTS","AMOUNT","RATE_DAILY","PERIOD"]
[334148787,1722796242900,-896.88,0.00013972,2]
[334148788,1722796242909,-500.0,0.00013972,2]
[334148789,1722796242919,-164.31643549,0.00014,2]
[334148790,1722796242929,-14002.7983638,0.00014236,2]
[334148791,1722796242940,-649.85,0.00014244,2]
[334148792,1722796242950,-500.0,0.00014246,2]
[334148793,1722796242960,-500.0,0.00014246,2]
[334148794,1722796242969,-500.0,0.00014246,2]
[334148795,1722796242979,-629.11536128,0.00014246,2]
[334148796,1722796242989,-500.0,0.00014246,2]
[334148797,1722796243000,-500.0,0.00014246,2]
[334148798,1722796243012,-500.0,0.00014246,2]
[334148800,1722796243022,-533.86,0.00014246,2]
[334148802,1722796243033,-500.0,0.00014246,2]
[334148804,1722796243042,-500.0,0.00014246,2]
[334148805,1722796243053,-500.0,0.00014246,2]
[334148807,1722796243062,-500.0,0.00014246,2]
[334148809,1722796243073,-500.0,0.00014246,2]
[334148811,1722796243084,-555.66,0.00014246,2]
[334148812,1722796243094,-1077.66,0.00014246,2]
[334148814,1722796243106,-500.0,0.00014246,2]
[334148815,1722796243116,-500.0,0.00014246,2]
[334148816,1722796243127,-737.31,0.00014246,2]
[334148817,1722796243136,-500.0,0.00014246,2]
[334148818,1722796243146,-500.0,0.00014246,2]
[334148819,1722796243156,-500.0,0.00014246,2]
[334148820,1722796243165,-636.8,0.00014246,2]
[334148821,1722796243174,-500.0,0.00014246,2]
[334148822,1722796243189,-913.48,0.00014246,2]
[334148823,1722796243198,-2932.06,0.00014246,2]
[334148824,1722796243207,-500.0,0.00014246,2]
[334148825,1722796243217,-500.0,0.00014246,2]
[334148826,1722796243226,-763.62,0.00014246,2]
[334148827,1722796243236,-1492.3,0.00014246,2]
[334148828,1722796243245,-1603.02,0.00014246,2]
[334148829,1722796243255,-500.0,0.00014246,2]
[334148830,1722796243264,-586.52,0.00014246,2]
[334148831,1722796243275,-500.0,0.00014246,2]
[334148832,1722796243285,-687.01,0.00014246,2]
[334148833,1722796243295,-500.0,0.00014246,2]
[334148834,1722796243306,-500.0,0.00014246,2]
[334148835,1722796243316,-500.0,0.00014246,2]
[334148836,1722796243327,-500.0,0.00014246,2]
[334148837,1722796243337,-887.65,0.00014246,2]
[334148838,1722796243347,-558.19,0.00014246,2]
[334148839,1722796243358,-500.0,0.00014246,2]
[334148840,1722796243369,-2337.12,0.00014246,2]
[334148841,1722796243380,-1252.74,0.00014246,2]
[334148842,1722796243393,-500.0,0.00014246,2]
[334148843,1722796243405,-562.0,0.00014246,2]
[334148844,1722796243414,-500.0,0.00014246,2]
[334148845,1722796243424,-500.0,0.00014246,2]
[334148846,1722796243437,-523.81603104,0.00014246,2]
[334148847,1722796243446,-500.0,0.00014246,2]
[334148848,1722796243457,-500.0,0.00014246,2]
[334148849,1722796243466,-500.0,0.00014246,2]
[334148850,1722796243481,-500.0,0.00014246,2]
[334148851,1722796243491,-500.0,0.00014246,2]
[334148852,1722796243501,-507.93,0.00014246,2]
[334148853,1722796243511,-2588.41,0.00014246,2]
[334148854,1722796243524,-500.0,0.00014246,2]
[334148855,1722796243536,-500.0,0.00014246,2]
[334148856,1722796243547,-1306.33,0.00014246,2]
[334148857,1722796243559,-803.01,0.00014246,2]
[334148858,1722796243571,-500.0,0.00014246,2]
[334148859,1722796243582,-2778.06,0.00014246,2]
[334148860,1722796243592,-500.0,0.00014246,2]
[334148861,1722796243603,-500.0,0.00014246,2]
[334148862,1722796243614,-295.48622073,0.00014246,2]
[334148863,1722796243623,-500.0,0.00014246,2]
[334148864,1722796243632,-500.0,0.00014246,2]
[334148865,1722796243642,-500.0,0.00014246,2]
[334148866,1722796243652,-896.88,0.00014246,2]
[334148867,1722796243661,-750.0,0.00014247,2]
[334148868,1722796243670,-202.701694,0.00014247,2]
[334148869,1722796243680,-1411.0,0.0001432,2]
[334148870,1722796243693,-367.88690048,0.00014326,2]
[334148871,1722796243703,-413.816345,0.0001439,2]
[334148872,1722796243712,-587.9099158,0.0001439,2]
[334148873,1722796243722,-6355.37449435,0.0001443,2]
[334148874,1722796243731,-14002.7983638,0.0001451,2]
[334148875,1722796243741,-649.85,0.00014517,2]
[334148876,1722796243752,-649.85,0.00014519,2]
[334148877,1722796243761,-505.0,0.0001452,2]
[334148878,1722796243772,-500.0,0.0001452,2]
[334148879,1722796243781,-500.0,0.0001452,2]
[334148880,1722796243791,-500.0,0.0001452,2]
[334148881,1722796243801,-500.0,0.0001452,2]
[334148882,1722796243811,-500.0,0.0001452,2]
[334148883,1722796243820,-533.86,0.0001452,2]
[334148884,1722796243830,-500.0,0.0001452,2]
[334148885,1722796243839,-500.0,0.0001452,2]
[334148886,1722796243849,-500.0,0.0001452,2]
[334148887,1722796243858,-500.0,0.0001452,2]
[334148888,1722796243868,-500.0,0.0001452,2]
[334148889,1722796243878,-555.66,0.0001452,2]
[334148890,1722796243888,-1077.66,0.0001452,2]
[334148891,1722796243898,-500.0,0.0001452,2]
[334148892,1722796243907,-500.0,0.0001452,2]
[334148893,1722796243917,-737.31,0.0001452,2]
[334148894,1722796243927,-500.0,0.0001452,2]
[334148895,1722796243940,-500.0,0.0001452,2]
[334148896,1722796243949,-500.0,0.0001452,2]
[334148897,1722796243958,-636.8,0.0001452,2]
[334148898,1722796243967,-500.0,0.0001452,2]
[334148899,1722796243977,-913.48,0.0001452,2]
[334148900,1722796243986,-2932.06,0.0001452,2]
[334148901,1722796243996,-500.0,0.0001452,2]
[334148902,1722796244006,-500.0,0.0001452,2]
[334148903,1722796244015,-763.62,0.0001452,2]
[334148904,1722796244025,-1492.3,0.0001452,2]
[334148905,1722796244035,-1603.02,0.0001452,2]
[334148906,1722796244045,-500.0,0.0001452,2]
[334148907,1722796244055,-586.52,0.0001452,2]
[334148908,1722796244066,-500.0,0.0001452,2]
[334148909,1722796244076,-687.01,0.0001452,2]
[334148910,1722796244086,-500.0,0.0001452,2]
[334148911,1722796244097,-500.0,0.0001452,2]
[334148912,1722796244108,-500.0,0.0001452,2]
[334148913,1722796244118,-500.0,0.0001452,2]
[334148914,1722796244127,-887.65,0.0001452,2]
[334148915,1722796244138,-558.19,0.0001452,2]
[334148916,1722796244148,-500.0,0.0001452,2]
[334148917,1722796244157,-2337.12,0.0001452,2]
[334148918,1722796244167,-1252.74,0.0001452,2]
[334148919,1722796244177,-500.0,0.0001452,2]
[334148920,1722796244190,-562.0,0.0001452,2]
[334148921,1722796244200,-500.0,0.0001452,2]
[334148922,1722796244210,-500.0,0.0001452,2]
[334148923,1722796244220,-500.0,0.0001452,2]
[334148924,1722796244229,-500.0,0.0001452,2]
[334148925,1722796244239,-500.0,0.0001452,2]
[334148926,1722796244249,-500.0,0.0001452,2]
[334148927,1722796244259,-500.0,0.0001452,2]
[334148928,1722796244268,-507.93,0.0001452,2]
[334148929,1722796244278,-2588.41,0.0001452,2]
[334148930,1722796244288,-500.0,0.0001452,2]
[334148931,1722796244298,-500.0,0.0001452,2]
[334148932,1722796244308,-1306.33,0.0001452,2]
[334148933,1722796244317,-803.01,0.0001452,2]
[334148934,1722796244327,-500.0,0.0001452,2]
[334148935,1722796244337,-2778.06,0.0001452,2]
[334148936,1722796244346,-500.0,0.0001452,2]
[334148937,1722796244356,-500.0,0.0001452,2]
[334148938,1722796244367,-315.62959922,0.0001452,2]
[334148939,1722796244376,-500.0,0.0001452,2]
[334148940,1722796244386,-500.0,0.0001452,2]
[334148941,1722796244395,-896.88,0.0001452,2]
[334148942,1722796244405,-620.0027223,0.00014615,2]
[334148943,1722796244415,-1152.0,0.00014638,2]
[334148944,1722796244424,-151.0,0.0001468,2]
[334148945,1722796244436,-151.0,0.0001468,2]
[334148946,1722796244446,-14002.7983638,0.0001468,2]
[334148947,1722796244456,-752.20156835,0.0001469,2]
[334148948,1722796244466,-178.8367166,0.0001469,2]
[334148949,1722796244476,-154.88192351,0.0001469,2]
[334148950,1722796244488,-335.6564105,0.0001469,2]
[334148951,1722796244498,-286.60806988,0.0001469,2]
[334148952,1722796244507,-1880.67694903,0.0001469,2]
[334148953,1722796244517,-1630.23174338,0.0001469,2]
[334148954,1722796244526,-9677.18007245,0.0001469,2]
[334148955,1722796244536,-495.69104374,0.0001469,2]
[334148956,1722796244545,-4010.57324029,0.0001469,2]
[334148957,1722796244991,-500.0,0.00013972,2]
[334148958,1722796245002,-500.0,0.00014246,2]
[334148959,1722796245011,-500.0,0.00014246,2]
[334148960,1722796245021,-500.0,0.0001452,2]
[334148961,1722796245030,-500.0,0.0001452,2]
[334148962,1722796245040,-4126.66324042,0.0001469,2]
[334148963,1722796245050,-309.3349299,0.0001469,2]
[334148964,1722796245059,-154.79103211,0.0001469,10]
[334148965,1722796245068,-9868.25639137,0.0001469,2]
[334148966,1722796245086,-2693.8,0.0001469,2]
[334148967,1722796245098,-1202.60447094,0.0001469,2]
[334148968,1722796245108,-3033.88648179,0.0001469,2]
[334148969,1722796245118,-154.95256393,0.0001469,2]
[334148970,1722796245128,-4711.98211783,0.0001469,2]
[334148972,1722796245137,-218.32720111,0.0001469,2]
[334148973,1722796245147,-1492.87392022,0.0001469,2]
[334148976,1722796245157,-161.820012,0.0001469,2]
[334148977,1722796245166,-3785.86407866,0.0001469,2]
[334148979,1722796245176,-404.75983068,0.0001469,2]
[334148982,1722796245187,-161.820012,0.0001469,2]
[334148983,1722796245197,-649.85,0.00014782,2]
[334148984,1722796245207,-14002.7983638,0.00014784,2]
[334148985,1722796245217,-649.85,0.00014793,2]
[334148986,1722796245227,-5087.05607297,0.00014794,5]
[334148987,1722796245236,-500.0,0.00014794,2]
[334148988,1722796245246,-500.0,0.00014794,2]
[334148989,1722796245255,-500.0,0.00014794,2]
[334148990,1722796245266,-500.0,0.00014794,2]
[334148991,1722796245275,-500.0,0.00014794,2]
[334148992,1722796245284,-533.86,0.00014794,2]
[334148993,1722796245294,-500.0,0.00014794,2]
[334148994,1722796245304,-500.0,0.00014794,2]
[334148995,1722796245313,-500.0,0.00014794,2]
[334148996,1722796245323,-500.0,0.00014794,2]
[334148997,1722796245332,-500.0,0.00014794,2]
[334148998,1722796245341,-555.66,0.00014794,2]
[334148999,1722796245351,-1077.66,0.00014794,2]
[334149000,1722796245360,-207.354255,0.00014794,2]
[334149001,1722796245369,-207.354255,0.00014794,2]
[334149002,1722796245379,-500.0,0.00014794,2]
[334149003,1722796245388,-500.0,0.00014794,2]
[334149004,1722796245398,-737.31,0.00014794,2]
[334149005,1722796245407,-500.0,0.00014794,2]
[334149006,1722796245416,-500.0,0.00014794,2]
[334149007,1722796245426,-500.0,0.00014794,2]
[334149008,1722796245437,-636.8,0.00014794,2]
[334149009,1722796245446,-500.0,0.00014794,2]
[334149010,1722796245456,-283.022821,0.00014794,2]
[334149011,1722796245465,-913.48,0.00014794,2]
[334149012,1722796245479,-2932.06,0.00014794,2]
[334149013,1722796245488,-185.972493,0.00014794,2]
[334149014,1722796245498,-500.0,0.00014794,2]
[334149015,1722796245507,-151.0,0.00014794,2]
[334149016,1722796245518,-500.0,0.00014794,2]
[334149017,1722796245528,-763.62,0.00014794,2]
[334149018,1722796245537,-1492.3,0.00014794,2]
[334149019,1722796245548,-1603.02,0.00014794,2]
[334149020,1722796245557,-151.0,0.00014794,2]
[334149021,1722796245567,-500.0,0.00014794,2]
[334149022,1722796245576,-586.52,0.00014794,2]
[334149023,1722796245586,-500.0,0.00014794,2]
[334149024,1722796245596,-687.01,0.00014794,2]
[334149025,1722796245605,-500.0,0.00014794,2]
[334149026,1722796245614,-151.0,0.00014794,2]
[334149027,1722796245624,-151.0,0.00014794,2]
[334149028,1722796245634,-500.0,0.00014794,2]
[334149030,1722796245644,-151.0,0.00014794,2]
[334149031,1722796245653,-500.0,0.00014794,2]
[334149032,1722796245662,-500.0,0.00014794,2]
[334149033,1722796245672,-887.65,0.00014794,2]
[334149034,1722796245682,-558.19,0.00014794,2]
[334149035,1722796245693,-500.0,0.00014794,2]
[334149036,1722796245702,-176.847977,0.00014794,2]
[334149037,1722796245711,-2337.12,0.00014794,2]
[334149038,1722796245721,-176.847977,0.00014794,2]
[334149039,1722796245730,-1252.74,0.00014794,2]
[334149040,1722796245739,-500.0,0.00014794,2]
[334149041,1722796245749,-562.0,0.00014794,2]
[334149042,1722796245759,-500.0,0.00014794,2]
[334149043,1722796245769,-500.0,0.00014794,2]
[334149044,1722796245778,-500.0,0.00014794,2]
[334149045,1722796245788,-500.0,0.00014794,2]
[334149046,1722796245797,-151.0,0.00014794,2]
[334149047,1722796245807,-211.165608,0.00014794,2]
[334149048,1722796245817,-500.0,0.00014794,2]
[334149049,1722796245827,-500.0,0.00014794,2]
[334149050,1722796245836,-500.0,0.00014794,2]
[334149051,1722796245846,-507.93,0.00014794,2]
[334149052,1722796245855,-2588.41,0.00014794,2]
[334149053,1722796245865,-618.75025676,0.00014794,2]
[334149054,1722796245874,-500.0,0.00014794,2]
[334149055,1722796245884,-1306.33,0.00014794,2]
[334149056,1722796245894,-803.01,0.00014794,2]
[334149057,1722796245904,-500.0,0.00014794,2]
[334149058,1722796245914,-2778.06,0.00014794,2]
[334149059,1722796245923,-500.0,0.00014794,2]
[334149060,1722796245936,-500.0,0.00014794,2]
[334149061,1722796245946,-151.0,0.00014794,2]
[334149062,1722796245955,-500.0,0.00014794,2]
[334149063,1722796245966,-500.0,0.00014794,2]
[334149064,1722796245977,-896.88,0.00014794,2]
[334149065,1722796245986,-217.398995,0.00014794,2]
[334149066,1722796245996,-500.0,0.00014794,2]
[334149067,1722796246005,-500.0,0.00014794,2]
[334149068,1722796246015,-200.0,0.00014795,2]
[334149069,1722796246025,-649.85,0.00014999,2]
[334149070,1722796246034,-2527.85099872,0.00015,2]
[334149071,1722796246044,-3665.63770649,0.00015,2]
[334149072,1722796246054,-347.77955978,0.00015,4]
[334149073,1722796246064,-492.40339763,0.00015,2]
[334149074,1722796246074,-1108.76834352,0.00015,2]
[334149075,1722796246084,-951.69950854,0.00015,2]
[334149076,1722796246093,-154.71377951,0.00015,2]
[334149077,1722796246103,-2267.05847094,0.00015,2]
[334149078,1722796246113,-151.0,0.00015,2]
[334149079,1722796246122,-4701.99252574,0.00015008,2]
[334149080,1722796246132,-200.0,0.00015018,2]
[334149082,1722796246142,-14002.7983638,0.00015058,2]
[334149084,1722796246151,-161.820012,0.00015058,2]
[334149085,1722796246161,-161.820012,0.00015058,2]
[334149086,1722796246171,-649.85,0.00015067,2]
[334149087,1722796246181,-9147.00801692,0.00015068,5]
[334149088,1722796246194,-500.0,0.00015068,2]
[334149089,1722796246204,-500.0,0.00015068,2]
[334149090,1722796246213,-500.0,0.00015068,2]
[334149091,1722796246223,-500.0,0.00015068,2]
[334149092,1722796246232,-500.0,0.00015068,2]
[334149093,1722796246242,-151.0,0.00015068,2]
[334149094,1722796246252,-533.86,0.00015068,2]
[334149095,1722796246261,-500.0,0.00015068,2]
[334149096,1722796246271,-500.0,0.00015068,2]
[334149097,1722796246280,-500.0,0.00015068,2]
[334149098,1722796246290,-500.0,0.00015068,2]
[334149099,1722796246300,-500.0,0.00015068,2]
[334149100,1722796246310,-555.66,0.00015068,2]
[334149101,1722796246319,-1077.66,0.00015068,2]
[334149102,1722796246329,-207.354255,0.00015068,2]
[334149103,1722796246339,-207.354255,0.00015068,2]
[334149104,1722796246348,-500.0,0.00015068,2]
[334149105,1722796246358,-500.0,0.00015068,2]
[334149106,1722796246367,-737.31,0.00015068,2]
[334149107,1722796246378,-233.38399383,0.00015068,2]
[334149109,1722796246388,-500.0,0.00015068,2]
[334149111,1722796246398,-500.0,0.00015068,2]
[334149113,1722796246407,-636.8,0.00015068,2]
[334149114,1722796246417,-500.0,0.00015068,2]
[334149116,1722796246426,-913.48,0.00015068,2]
[334149118,1722796246437,-2932.06,0.00015068,2]
[334149119,1722796246446,-500.0,0.00015068,2]
[334149120,1722796246456,-500.0,0.00015068,2]
[334149121,1722796246465,-763.62,0.00015068,2]
[334149122,1722796246476,-1492.3,0.00015068,2]
[334149123,1722796246487,-1603.02,0.00015068,2]
[334149124,1722796246499,-500.0,0.00015068,2]
[334149125,1722796246510,-586.52,0.00015068,2]
[334149126,1722796246521,-500.0,0.00015068,2]
[334149127,1722796246531,-687.01,0.00015068,2]
[334149128,1722796246542,-500.0,0.00015068,2]
[334149129,1722796246552,-500.0,0.00015068,2]
[334149130,1722796246565,-500.0,0.00015068,2]
[334149131,1722796246575,-500.0,0.00015068,2]
[334149132,1722796246585,-887.65,0.00015068,2]
[334149133,1722796246595,-558.19,0.00015068,2]
[334149134,1722796246605,-500.0,0.00015068,2]
[334149135,1722796246614,-2337.12,0.00015068,2]
[334149136,1722796246624,-1252.74,0.00015068,2]
[334149137,1722796246634,-500.0,0.00015068,2]
[334149138,1722796246644,-562.0,0.00015068,2]
[334149139,1722796246653,-500.0,0.00015068,2]
[334149140,1722796246661,-500.0,0.00015068,2]
[334149141,1722796246670,-500.0,0.00015068,2]
[334149142,1722796246680,-635.86668093,0.00015068,2]
[334149143,1722796246692,-151.0,0.00015068,2]
[334149144,1722796246701,-500.0,0.00015068,2]
[334149145,1722796246710,-500.0,0.00015068,2]
[334149146,1722796246719,-500.0,0.00015068,2]
[334149147,1722796246728,-507.93,0.00015068,2]
[334149149,1722796246739,-2588.41,0.00015068,2]
[334149150,1722796246750,-500.0,0.00015068,2]
[334149152,1722796246760,-1306.33,0.00015068,2]
[334149154,1722796246770,-803.01,0.00015068,2]
[334149155,1722796246779,-500.0,0.00015068,2]
[334149156,1722796246790,-2778.06,0.00015068,2]
[334149157,1722796246799,-500.0,0.00015068,2]
[334149158,1722796246810,-500.0,0.00015068,2]
[334149159,1722796246819,-151.0,0.00015068,2]
[334149160,1722796246829,-500.0,0.00015068,2]
[334149161,1722796246839,-500.0,0.00015068,2]
[334149162,1722796246851,-474.50628737,0.00015068,2]
[334149204,1722796614715,-191.62470048,9.409e-05,2]
[334149205,1722796614739,-191.62470048,9.6e-05,2]
[334149206,1722796614762,-109.75059904,9.998e-05,2]
[334149210,1722796657515,193.31316649,9.998e-05,10]
[334149211,1722796978157,5670.0,0.00027,120]
[334149257,1722797436526,-600.0,9.356e-05,2]
[334149258,1722797436536,-300.0,9.451e-05,2]
[334149260,1722797436546,-255.20154369,9.451e-05,2]
[334149262,1722797436559,-44.79845631,9.451e-05,2]
[334149264,1722797436569,-8739.74520945,9.452e-05,2]
[334149266,1722797436581,-6997.10774973,9.452e-05,2]
[334149268,1722797436594,-9163.14704082,9.452e-05,2]
[334149270,1722797436603,-250.0,9.976e-05,2]
[334149272,1722797436612,-193.81424448,9.999e-05,2]
[334149274,1722797436622,-156.61103376,9.999e-05,2]
[334149276,1722797436632,-319.72766707,9.999e-05,2]
[334149278,1722797436641,-248.26630501,9.999e-05,2]
[334149281,1722797436651,-600.8534117,9.999e-05,2]
[334149283,1722797436661,-276.54652674,9.999e-05,2]
[334149285,1722797436670,-154.77557542,9.999e-05,2]
[334149286,1722797436680,-506.48190828,9.999e-05,2]
[334149287,1722797436689,-154.77557542,9.999e-05,2]
[334149288,1722797436700,-154.77557542,9.999e-05,2]
[334149289,1722797436712,-533.92328189,9.999e-05,2]
[334149290,1722797436722,-157.80579925,9.999e-05,2]
[334149291,1722797436731,-521.60910271,9.999e-05,2]
[334149292,1722797436741,-159.24043179,9.999e-05,2]
[334149293,1722797436750,-186.16274257,9.999e-05,2]
[334149294,1722797436760,-154.77557542,9.999e-05,2]
[334149295,1722797436769,-154.77557542,9.999e-05,2]
[334149296,1722797436779,-591.73393224,9.999e-05,2]
[334149297,1722797436819,-135.79540319,9.999e-05,2]
[334149298,1722797436829,-110.67860933,9.999e-05,2]
[334149299,1722797436844,-738.72053688,9.999e-05,2]
[334149300,1722797436855,-154.93350499,9.999e-05,2]
[334149301,1722797436867,-154.77557542,9.999e-05,2]
[334149302,1722797436879,-577.72785795,9.999e-05,2]
[334149303,1722797436891,-154.83742071,9.999e-05,2]
[334149304,1722797436901,-568.56884199,9.999e-05,2]
[334149305,1722797436912,-779.66389887,9.999e-05,2]
[334149306,1722797436923,-311.01915351,9.999e-05,2]
[334149307,1722797436937,-292.77249476,9.999e-05,2]
[334149308,1722797436948,-154.77557542,9.999e-05,2]
[334149309,1722797436961,-532.14086008,9.999e-05,2]
[334149310,1722797436972,-403.74175046,9.999e-05,2]
[334149311,1722797436982,-154.77557542,9.999e-05,2]
[334149312,1722797436992,-240.80307792,9.999e-05,2]
[334149313,1722797437003,-160.1642143,9.999e-05,2]
[334149314,1722797437012,-209.86849569,9.999e-05,2]
[334149315,1722797437021,-188.2335741,9.999e-05,2]
[334149316,1722797437030,-180.49245285,9.999e-05,2]
[334149347,1722797438513,-108.03964427,9.999e-05,2]
[334149348,1722797438523,-154.77557542,9.999e-05,2]
[334149349,1722797438533,-342.05014288,9.999e-05,2]
[334149350,1722797438546,-154.77557542,9.999e-05,2]
[334149351,1722797438557,-270.57521723,9.999e-05,2]
[334149352,1722797438567,-183.20844745,9.999e-05,2]
[334149353,1722797438576,-154.77557542,9.999e-05,2]
[334149354,1722797438586,-154.77557542,9.999e-05,2]
[334149355,1722797438596,-156.73199194,9.999e-05,2]
[334149356,1722797438606,-543.08033697,9.999e-05,2]
[334149357,1722797438615,-694.1093999,9.999e-05,2]
[334149358,1722797438625,-205.1880395,9.999e-05,2]
[334149359,1722797438634,-154.74467129,9.999e-05,2]
[334149360,1722797438644,-154.81968111,9.999e-05,2]
[334149361,1722797438654,-154.74467129,9.999e-05,2]
[334149362,1722797438663,-314.22835068,9.999e-05,2]
[334149363,1722797438673,-163.06705816,9.999e-05,2]
[334149364,1722797438682,-426.9441554,9.999e-05,2]
[334149365,1722797438693,-205.58660703,9.999e-05,2]
[334149366,1722797438708,-196.46943428,9.999e-05,2]
[334149367,1722797438718,-180.4790292,9.999e-05,2]
[334149368,1722797438727,-494.23715236,9.999e-05,2]
[334149369,1722797438739,-180.59863647,0.0001,2]
[334149370,1722797439580,-635.62124233,0.0001,2]
[334149372,1722797439591,-200.1317292,0.0001,2]
[334149374,1722797439602,-154.77557542,0.0001,2]
[334149388,1722797439749,-154.77557542,0.0001,2]
[334149391,1722797439761,-412.94081029,0.0001,2]
[334149393,1722797439772,-154.74467129,0.0001,2]
[334149395,1722797439782,-250.0,0.00010003,2]
[334149397,1722797439792,-250.0,0.0001003,2]
[334149399,1722797439802,-250.0,0.00010058,2]
[334149400,1722797439811,-250.0,0.00010085,2]
[334149403,1722797439823,-250.0,0.00010113,2]
[334149405,1722797439834,-250.0,0.0001014,2]
[334149407,1722797439845,-250.0,0.00010167,2]
[334149409,1722797439855,-250.0,0.00010195,2]
[334149411,1722797439865,-250.0,0.00010222,2]
[334149412,1722797439874,-250.0,0.00010249,2]
[334149414,1722797439883,-250.0,0.00010277,2]
[334149416,1722797439893,-250.0,0.00010304,2]
[334149418,1722797439903,-250.0,0.00010331,2]
[334149420,1722797439912,-250.0,0.00010359,2]
[334149422,1722797439924,-250.0,0.00010386,2]
[334149423,1722797439935,-420.0,0.00010396,2]
[334149426,1722797439944,-420.0,0.00010396,2]
[334149428,1722797439959,-250.0,0.00010414,2]
[334149429,1722797439968,-250.0,0.00010441,2]
[334149430,1722797439978,-250.0,0.00010468,2]
[334149431,1722797439987,-250.0,0.00010496,2]
[334149432,1722797439996,-436.42,0.00010959,2]
[334149433,1722797440006,-363.69,0.00010959,2]
[334149434,1722797440015,-303.07,0.00010959,2]
[334149435,1722797440025,-252.56,0.00010959,2]
[334149436,1722797440035,-210.47,0.00010959,2]
[334149437,1722797440044,-175.39,0.00010959,2]
[334149438,1722797440054,-583.62202229,0.00010959,2]
[334149439,1722797440067,-293.33797771,0.00010959,2]
[334149440,1722797440078,-587.0,0.00011436,2]
[334149441,1722797440088,-823.0,0.00012579,2]
[334149442,1722797440098,-372.31791331,0.000129,2]
[334149443,1722797440111,-3437.2142228,0.000129,2]
[334149444,1722797440121,-687.86686615,0.00013598,2]
[334149446,1722797440130,-10469.9076424,0.00013688,2]
[334149447,1722797440140,-500.0,0.00013697,2]
[334149448,1722797440150,-500.0,0.00013698,2]
[334149449,1722797440160,-183.59834691,0.00013698,2]
[334149457,1722797441305,-512.4937417,9.9e-05,2]
[334149459,1722797441315,-316.40165309,0.00013698,2]
[334149461,1722797441328,-500.0,0.00013698,2]
[334149462,1722797441338,-500.0,0.00013698,2]
[334149463,1722797441347,-500.0,0.00013698,2]
[334149464,1722797441358,-500.0,0.00013698,2]
[334149465,1722797441367,-500.0,0.00013698,2]
[334149466,1722797441376,-500.0,0.00013698,2]
[334149467,1722797441386,-500.0,0.00013698,2]
[334149468,1722797441395,-500.0,0.00013698,2]
[334149469,1722797441405,-500.0,0.00013698,2]
[334149470,1722797441415,-500.0,0.00013698,2]
[334149471,1722797441424,-372.04049828,0.00013698,2]
[334149472,1722797441434,-500.0,0.00013698,2]
[334149473,1722797441443,-500.0,0.00013698,2]
[334149474,1722797441456,-500.0,0.00013698,2]
[334149475,1722797441465,-500.0,0.00013698,2]
[334149476,1722797441476,-198.61028582,0.00013698,2]
[334149477,1722797441486,-71.71052295,0.00013698,2]
[334149478,1722797441499,-428.28947705,0.00013698,2]
[334149479,1722797441509,-500.0,0.00013698,2]
[334149480,1722797441519,-500.0,0.00013698,2]
[334149481,1722797441529,-500.0,0.00013698,2]
[334149482,1722797441541,-500.0,0.00013698,2]
[334149483,1722797441552,-500.0,0.00013698,2]
[334149484,1722797441562,-500.0,0.00013698,2]
[334149485,1722797441573,-260.87333471,0.00013698,2]
[334149486,1722797441583,-500.0,0.00013698,2]
[334149487,1722797441593,-500.0,0.00013698,2]
[334149488,1722797441604,-499.99999999,0.00013698,2]